bitfinex/quotes_BTCUSD_20240620
["timestamp","ask_amount","ask_price","bid_price","bid_amount"]
[1718890691706,0.00086,65434.0,65433.0,0.28768172]
[1718890691900,0.00086,65434.0,65433.0,0.31644989]
[1718890692331,0.31841551,65434.0,65433.0,0.31644989]
[1718890692503,0.31841551,65434.0,65433.0,0.39272929]
[1718890692888,0.41841551,65434.0,65433.0,0.39272929]
[1718890693788,0.41905491,65434.0,65433.0,0.39272929]
[1718890694273,0.41905491,65434.0,65433.0,0.34272929]
[1718890694475,0.41905491,65434.0,65433.0,0.31396112]
[1718890694690,0.45639319,65434.0,65420.0,0.13470572]
[1718890694893,0.45489379,65433.0,65426.0,0.05]
[1718890695100,0.35489379,65432.0,65427.0,0.16256112]
[1718890695308,0.45489379,65431.0,65427.0,0.16256112]
[1718890695523,0.41755551,65430.0,65427.0,0.15256112]
[1718890695729,0.31755551,65429.0,65428.0,0.1614]
[1718890695849,0.1,65433.0,65431.0,0.13153449]
[1718890696049,0.1,65433.0,65431.0,0.40992689]
[1718890696050,0.03695918,65432.0,65431.0,0.40992689]
[1718890696281,0.1,65433.0,65431.0,0.40992689]
[1718890696845,0.0374133,65432.0,65431.0,0.33364517]
[1718890697545,0.0014994,65434.0,65432.0,0.1614]
[1718890697824,0.0014994,65434.0,65431.0,0.40992689]
[1718890697825,0.0014994,65434.0,65433.0,0.37609381]
[1718890698082,0.0399099,65434.0,65433.0,0.37609381]
[1718890698196,0.06388899,65434.0,65433.0,0.37609381]
[1718890698923,0.02547849,65434.0,65433.0,0.42609381]
[1718890701187,0.02547849,65434.0,65433.0,0.68219381]
[1718890701387,0.02547849,65434.0,65433.0,0.70519381]
[1718890701757,0.02547849,65434.0,65433.0,0.71919381]
[1718890702475,0.02547849,65434.0,65433.0,0.73319381]
[1718890703466,0.02547849,65434.0,65433.0,0.71919381]
[1718890703810,0.02547849,65434.0,65433.0,0.69619381]
[1718890704010,0.02547849,65434.0,65433.0,0.32796112]
[1718890704562,0.02547849,65434.0,65433.0,0.37796112]
[1718890704912,0.02547849,65434.0,65433.0,0.39196112]
[1718890705145,0.02547849,65434.0,65433.0,0.37796112]
[1718890705341,0.02547849,65434.0,65433.0,0.45173885]
[1718890705526,0.02547849,65434.0,65433.0,0.47473885]
[1718890705726,0.02547849,65434.0,65433.0,1.16573885]
[1718890706525,0.02547849,65434.0,65433.0,1.20173885]
[1718890708647,0.00086,65441.0,65440.0,0.3634]
[1718890708855,0.00086,65441.0,65440.0,0.76070112]
[1718890710127,0.00086,65441.0,65440.0,1.02450112]
[1718890710469,0.00086,65441.0,65440.0,1.33540112]
[1718890711365,0.1,65465.0,65461.0,0.2114]
[1718890711514,0.00863,65466.0,65465.0,0.2114]
[1718890711680,0.00863,65466.0,65465.0,0.40035723]
[1718890712915,0.00863,65466.0,65465.0,0.35035723]
[1718890713115,0.00863,65466.0,65465.0,0.40035723]
[1718890713682,0.00863,65466.0,65465.0,0.35035723]
[1718890713798,0.00863,65466.0,65465.0,0.40035723]
[1718890714851,0.02,65464.0,65451.0,0.1614]
[1718890715027,0.3366,65465.0,65452.0,0.31396112]
[1718890715234,0.02,65463.0,65452.0,0.31396112]
[1718890715442,0.03745714,65462.0,65453.0,0.03639611]
[1718890715646,0.03745714,65462.0,65454.0,0.39329793]
[1718890715882,0.1,65464.0,65454.0,0.39329793]
[1718890715883,0.03745714,65461.0,65454.0,0.39329793]
[1718890716110,0.1,65464.0,65456.0,0.2114]
[1718890716311,0.1,65464.0,65454.0,0.23189793]
[1718890716312,0.02,65462.0,65447.0,0.1614]
[1718890716515,0.1,65464.0,65445.0,0.05]
[1718890716516,0.02,65460.0,65449.0,0.1614]
[1718890716638,0.02,65460.0,65450.0,0.15256112]
[1718890716848,0.03861883,65459.0,65452.0,0.014]
[1718890717063,0.03861883,65458.0,65452.0,0.16656112]
[1718890717271,0.03861883,65457.0,65452.0,0.15256112]
[1718890717465,0.03861883,65456.0,65453.0,0.0419011]
[1718890717669,0.12,65464.0,65455.0,0.07628172]
[1718890717870,0.04002877,65463.0,65456.0,0.00305513]
[1718890718082,0.04002877,65463.0,65462.0,0.07628172]
[1718890718275,0.04002877,65463.0,65462.0,0.099166]
[1718890719303,0.04002877,65463.0,65457.0,0.15256112]
[1718890720566,0.04002877,65463.0,65462.0,0.23768172]
[1718890720770,0.00863,65466.0,65465.0,0.1614]
[1718890720944,0.00863,65466.0,65465.0,0.3579854]
[1718890721106,0.04948554,65466.0,65465.0,0.3579854]
[1718890721314,0.00863,65466.0,65465.0,0.3579854]
[1718890722115,0.00863,65466.0,65465.0,0.4079854]
[1718890722998,0.00863,65466.0,65465.0,0.3579854]
[1718890723733,0.00863,65466.0,65465.0,0.4079854]
[1718890724697,0.00863,65466.0,65465.0,0.4219854]
[1718890725450,0.00863,65466.0,65465.0,0.014]
[1718890725810,0.00863,65466.0,65457.0,0.2114]
[1718890726006,0.00863,65466.0,65459.0,0.1614]
[1718890726208,0.00863,65466.0,65461.0,0.1614]
[1718890726409,0.00863,65466.0,65462.0,0.15256112]
[1718890726623,0.00863,65466.0,65465.0,0.014]
[1718890726823,0.00863,65466.0,65465.0,0.028]
[1718890727027,0.00863,65466.0,65465.0,0.34196112]
[1718890727652,0.00863,65466.0,65465.0,0.18056112]
[1718890730378,0.00863,65466.0,65465.0,0.028]
[1718890730834,0.04324251,65466.0,65465.0,0.014]
[1718890732125,0.08780416,65466.0,65465.0,0.014]
[1718890732327,0.04324251,65466.0,65465.0,0.014]
[1718890732528,0.18788286,65466.0,65465.0,0.014]
[1718890733109,0.18788286,65466.0,65458.0,0.1614]
[1718890733310,0.18788286,65466.0,65465.0,0.28768172]
[1718890733311,0.14324251,65466.0,65465.0,0.28768172]
[1718890733529,0.00863,65466.0,65465.0,0.44024284]
[1718890734074,0.00863,65466.0,65465.0,0.31396112]
[1718890734685,0.04038105,65466.0,65465.0,0.31396112]
[1718890734944,0.04038105,65466.0,65465.0,0.35175723]
[1718890735559,0.04038105,65466.0,65465.0,0.36575723]
[1718890736164,0.04038105,65466.0,65461.0,0.014]
[1718890736370,0.02,65464.0,65461.0,0.014]
[1718890736805,0.2054,65462.0,65461.0,0.014]
[1718890736926,0.2854,65462.0,65443.0,0.05]
[1718890737126,0.1,65461.0,65445.0,0.1614]
[1718890737327,0.12,65461.0,65447.0,0.1614]
[1718890737528,0.1,65461.0,65448.0,0.15256112]
[1718890737958,0.12,65461.0,65448.0,0.15256112]
[1718890738146,0.02,65457.0,65448.0,0.15256112]
[1718890738541,0.12,65461.0,65448.0,0.22884284]
[1718890738784,0.02,65457.0,65448.0,0.28216673]
[1718890738989,0.1,65461.0,65448.0,0.28216673]
[1718890739193,0.1,65461.0,65455.0,0.07628172]
[1718890739405,0.1,65461.0,65456.0,0.00122863]
[1718890739623,0.03066162,65460.0,65455.0,0.07628172]
[1718890739806,0.05066162,65460.0,65455.0,0.07628172]
[1718890740012,0.02,65457.0,65440.0,0.1614]
[1718890740154,0.02,65450.0,65441.0,0.15256112]
[1718890740338,0.02,65448.0,65441.0,0.15256112]
[1718890740549,0.03066162,65447.0,65441.0,0.15256112]
[1718890740758,0.03066162,65446.0,65441.0,0.15256112]
[1718890740963,0.03066162,65445.0,65441.0,0.15256112]
[1718890741166,0.03066162,65445.0,65436.0,0.1614]
[1718890741167,0.03066162,65444.0,65436.0,0.1614]
[1718890741363,0.17870057,65448.0,65436.0,0.1614]
[1718890741772,0.19870057,65448.0,65436.0,0.1614]
[1718890741974,0.02,65444.0,65436.0,0.1614]
[1718890742182,0.17870057,65448.0,65436.0,0.1614]
[1718890742183,0.02,65445.0,65436.0,0.1614]
[1718890742597,0.02,65443.0,65436.0,0.1614]
[1718890742805,0.02,65440.0,65432.0,0.23748172]
[1718890743005,0.02,65437.0,65432.0,0.07628172]
[1718890743353,0.02,65437.0,65431.0,0.13153449]
[1718890743354,0.02,65434.0,65433.0,0.07628172]
[1718890743567,0.241,65436.0,65431.0,0.13153449]
[1718890743568,0.02,65433.0,65431.0,0.13153449]
[1718890743857,0.02,65432.0,65431.0,0.13153449]
[1718890744203,0.02,65433.0,65431.0,0.13153449]
[1718890744402,0.02,65433.0,65432.0,0.07628172]
[1718890745211,0.545,65435.0,65432.0,0.07628172]
[1718890745413,0.1,65435.0,65432.0,0.09715794]
[1718890745648,0.1,65440.0,65433.0,0.15256112]
[1718890745851,0.02,65441.0,65439.0,0.07628172]
[1718890746297,0.12,65447.0,65439.0,0.07628172]
[1718890746503,0.12,65447.0,65446.0,0.07628172]
[1718890746730,0.1,65447.0,65446.0,0.07628172]
[1718890747069,0.1,65447.0,65446.0,0.22884284]
[1718890747268,0.02,65455.0,65446.0,0.25172712]
[1718890747491,0.02,65455.0,65454.0,0.07628172]
[1718890748265,0.2596,65456.0,65454.0,0.07628172]
[1718890748687,0.02,65457.0,65454.0,0.07628172]
[1718890749312,0.03836616,65456.0,65454.0,0.07628172]
[1718890750405,0.11165244,65455.0,65454.0,0.07628172]
[1718890750668,0.13836616,65455.0,65454.0,0.07628172]
[1718890750882,0.13836616,65455.0,65454.0,0.08421542]
[1718890750883,0.16699536,65455.0,65454.0,0.08421542]
[1718890751236,0.16699536,65455.0,65454.0,0.23677654]
[1718890751415,0.18889682,65455.0,65454.0,0.23677654]
[1718890751816,0.11286933,65455.0,65454.0,0.23677654]
[1718890752177,0.19096787,65455.0,65454.0,0.23677654]
[1718890752390,0.16864371,65455.0,65454.0,0.39797654]
[1718890752718,0.12397251,65455.0,65454.0,0.39797654]
[1718890752927,0.02397251,65455.0,65454.0,0.39797654]
[1718890753205,0.02397251,65455.0,65454.0,0.44797654]
[1718890754654,0.02397251,65455.0,65454.0,0.46197654]
[1718890755417,0.02397251,65455.0,65454.0,0.38569482]
[1718890755622,0.02397251,65455.0,65454.0,0.33569482]
[1718890756224,0.02397251,65455.0,65454.0,0.17449482]
[1718890756743,0.06864371,65455.0,65454.0,0.17449482]
[1718890756968,0.08973513,65455.0,65454.0,0.17449482]
[1718890757173,0.08973513,65455.0,65454.0,0.014]
[1718890757375,0.17685599,65455.0,65454.0,0.014]
[1718890757597,0.27685599,65455.0,65454.0,0.014]
[1718890758170,0.18753198,65455.0,65454.0,0.014]
[1718890758377,0.14506393,65455.0,65454.0,0.014]
[1718890758574,0.14506393,65455.0,65447.0,0.1612]
[1718890759522,0.1,65452.0,65450.0,0.31376112]
[1718890759723,0.1,65452.0,65451.0,0.2112]
[1718890759927,0.1,65452.0,65451.0,0.73761949]
[1718890760247,0.1,65452.0,65451.0,0.37591949]
[1718890760456,0.02315492,65452.0,65451.0,0.37591949]
[1718890760603,0.09098802,65455.0,65451.0,0.37591949]
[1718890760604,0.14467704,65454.0,65451.0,0.37591949]
[1718890760846,0.02397251,65455.0,65452.0,0.36201873]
[1718890760847,0.06864955,65455.0,65452.0,0.36201873]
[1718890761052,0.12410565,65453.0,65452.0,0.36201873]
[1718890761363,0.02410565,65453.0,65452.0,0.36201873]
[1718890761565,0.12410565,65453.0,65452.0,0.36201873]
[1718890761774,0.1252887,65453.0,65452.0,0.36201873]
[1718890762118,0.19230421,65453.0,65452.0,0.36201873]
[1718890762500,0.1252887,65453.0,65452.0,0.31376112]
[1718890762841,0.1923192,65453.0,65452.0,0.31376112]
[1718890763122,0.0252887,65453.0,65452.0,0.31376112]
[1718890763656,0.06997609,65453.0,65452.0,0.31376112]
[1718890764361,0.0252887,65453.0,65452.0,0.31376112]
[1718890764611,0.16865631,65455.0,65452.0,0.40720289]
[1718890764773,0.02397251,65455.0,65454.0,0.23748172]
[1718890764976,0.02397251,65455.0,65454.0,0.39004284]
[1718890765194,0.04686569,65455.0,65454.0,0.4383913]
[1718890766568,0.04686569,65455.0,65454.0,0.36210958]
[1718890766743,0.04686569,65455.0,65454.0,0.37610958]
[1718890768558,0.11389735,65455.0,65454.0,0.32776112]
[1718890768865,0.14686569,65455.0,65454.0,0.32776112]
[1718890769247,0.21392845,65455.0,65454.0,0.34176112]
[1718890769454,0.21236399,65455.0,65454.0,0.34176112]
[1718890769884,0.21236399,65455.0,65454.0,0.38093723]
[1718890770031,0.14530123,65455.0,65454.0,0.38093723]
[1718890770846,0.19027912,65455.0,65454.0,0.36693723]
[1718890771277,0.21262844,65455.0,65454.0,0.36693723]
[1718890771487,0.21262844,65455.0,65454.0,0.35293723]
[1718890772476,0.14555607,65455.0,65454.0,0.35293723]
[1718890773100,0.14555607,65455.0,65454.0,0.36693723]
[1718890773509,0.18987902,65455.0,65454.0,0.38093723]
[1718890773946,0.21264668,65455.0,65454.0,0.38093723]
[1718890774546,0.04555607,65455.0,65454.0,0.98993723]
[1718890774742,0.02397251,65455.0,65454.0,0.98993723]
[1718890774948,0.02397251,65455.0,65454.0,1.09193723]
[1718890775481,0.02397251,65455.0,65454.0,0.98993723]
[1718890777778,0.02397251,65455.0,65454.0,0.97593723]
[1718890777779,0.0440721,65455.0,65454.0,0.97593723]
[1718890777947,0.02397251,65455.0,65454.0,0.97593723]
[1718890778355,0.02397251,65455.0,65454.0,0.98993723]
[1718890778754,0.04701637,65455.0,65454.0,0.98993723]
[1718890778959,0.02397251,65455.0,65454.0,0.97593723]
[1718890779172,0.04706705,65455.0,65454.0,0.93676112]
[1718890779383,0.04706705,65455.0,65454.0,0.34176112]
[1718890779578,0.00792705,65455.0,65454.0,0.39176112]
[1718890780248,0.05263882,65455.0,65454.0,0.34176112]
[1718890780453,0.07501766,65455.0,65454.0,0.38093723]
[1718890780793,0.00792705,65455.0,65454.0,0.36693723]
[1718890781017,0.00792705,65455.0,65454.0,0.38093723]
[1718890781226,0.07496733,65455.0,65454.0,0.36693723]
[1718890781435,0.07496733,65455.0,65454.0,0.35293723]
[1718890781969,0.07496733,65455.0,65454.0,0.41693723]
[1718890782188,0.00792705,65455.0,65454.0,0.41693723]
[1718890782800,0.00792705,65455.0,65454.0,0.32776112]
[1718890783536,0.00792705,65455.0,65454.0,0.37776112]
[1718890783961,0.00792705,65455.0,65454.0,0.36376112]
[1718890784350,0.05261812,65455.0,65454.0,0.37776112]
[1718890784548,0.00792705,65455.0,65454.0,0.37776112]
[1718890784750,0.00792705,65455.0,65454.0,0.40153723]
[1718890785169,0.00792705,65455.0,65454.0,0.41553723]
[1718890787225,0.00792705,65455.0,65454.0,0.40153723]
[1718890787436,0.00792705,65455.0,65454.0,0.41553723]
[1718890788007,0.00086,65455.0,65454.0,0.42953723]
[1718890788215,0.00086,65455.0,65454.0,0.79403723]
[1718890788389,0.00086,65455.0,65454.0,0.76603723]
[1718890788815,0.00086,65455.0,65454.0,0.78003723]
[1718890790105,0.00086,65455.0,65454.0,0.79403723]
[1718890790457,0.00086,65455.0,65454.0,0.80303723]
[1718890790652,0.00086,65455.0,65454.0,0.81703723]
[1718890791282,0.00086,65455.0,65454.0,0.80303723]
[1718890791483,0.00086,65455.0,65454.0,1.17173723]
[1718890791688,0.00086,65455.0,65454.0,1.18573723]
[1718890792076,0.00086,65455.0,65454.0,0.42953723]
[1718890792279,0.00086,65455.0,65454.0,0.47953723]
[1718890792489,0.04555107,65455.0,65454.0,0.34176112]
[1718890792726,0.04555107,65455.0,65454.0,0.32776112]
[1718890792925,0.02441558,65455.0,65454.0,0.32776112]
[1718890793099,0.04235647,65455.0,65454.0,0.32776112]
[1718890793307,0.04235647,65455.0,65454.0,0.41553723]
[1718890793574,0.09154675,65455.0,65454.0,0.41553723]
[1718890793773,0.06917111,65455.0,65454.0,0.40153723]
[1718890794043,0.02047818,65455.0,65454.0,0.40153723]
[1718890794256,0.06523993,65455.0,65454.0,0.41553723]
[1718890794388,0.04562045,65455.0,65454.0,0.42953723]
[1718890794588,0.04562045,65455.0,65454.0,0.41553723]
[1718890796292,0.00086,65455.0,65454.0,0.91553723]
[1718890796491,0.00086,65455.0,65454.0,1.04053723]
[1718890797943,0.00086,65455.0,65454.0,1.05453723]
[1718890798761,0.00086,65455.0,65454.0,0.95253723]
[1718890799110,0.00086,65455.0,65454.0,0.92953723]
[1718890800299,0.00086,65455.0,65454.0,0.42953723]
[1718890800515,0.04561821,65455.0,65454.0,0.42953723]
[1718890800846,0.00086,65455.0,65454.0,0.42953723]
[1718890801381,0.00086,65455.0,65454.0,0.53153723]
[1718890801583,0.00086,65455.0,65454.0,0.55253723]
[1718890801736,0.00086,65455.0,65454.0,0.54053723]
[1718890802137,0.00086,65455.0,65454.0,0.55453723]
[1718890802515,0.00086,65455.0,65454.0,1.19401895]
[1718890802621,0.00086,65455.0,65454.0,1.23001895]
[1718890802818,0.00086,65455.0,65454.0,1.38279795]
[1718890803049,0.00086,65455.0,65454.0,1.24401895]
[1718890803869,0.00086,65455.0,65454.0,1.23001895]
[1718890804071,0.00086,65455.0,65454.0,1.38279795]
[1718890804286,0.00863,65469.0,65468.0,0.3632]
[1718890804456,0.00863,65469.0,65468.0,0.92071972]
[1718890804969,0.00863,65469.0,65468.0,0.36048172]
[1718890805176,0.00863,65469.0,65468.0,0.46248172]
[1718890805380,0.00863,65469.0,65468.0,0.76759698]
[1718890805736,0.00863,65469.0,65468.0,0.78159698]
[1718890806403,0.00863,65469.0,65468.0,0.93434298]
[1718890806575,0.00863,65469.0,65468.0,0.78159698]
[1718890807076,0.00863,65469.0,65468.0,0.79559698]
[1718890807694,0.00863,65469.0,65468.0,0.79459698]
[1718890807868,0.00863,65469.0,65468.0,0.67059698]
[1718890808077,0.00863,65469.0,65468.0,0.62059698]
[1718890808284,0.00863,65469.0,65468.0,0.39176112]
[1718890808859,0.05339647,65469.0,65468.0,0.39176112]
[1718890809072,0.00863,65469.0,65468.0,0.39176112]
[1718890809314,0.05339647,65469.0,65468.0,0.34176112]
[1718890809426,0.31589647,65469.0,65468.0,0.34176112]
[1718890809635,0.28781211,65469.0,65468.0,0.34176112]
[1718890809885,0.02531211,65469.0,65468.0,0.34176112]
[1718890810246,0.04180433,65469.0,65468.0,0.34176112]
[1718890810671,0.02531211,65469.0,65468.0,0.38093723]
[1718890812157,0.02531211,65469.0,65468.0,0.34176112]
[1718890812539,0.02531211,65469.0,65468.0,0.39176112]
[1718890812962,0.02552819,65469.0,65468.0,0.39176112]
[1718890813169,0.07020917,65469.0,65468.0,0.39176112]
[1718890813428,0.02552819,65469.0,65468.0,0.39176112]
[1718890813583,0.02552819,65469.0,65468.0,0.43095562]
[1718890814495,0.07023138,65469.0,65468.0,0.43095562]
[1718890814713,0.02552819,65469.0,65468.0,0.43095562]
[1718890816157,0.07024541,65469.0,65468.0,0.43095562]
[1718890816765,0.07024541,65469.0,65468.0,0.41695562]
[1718890816880,0.02552819,65469.0,65468.0,0.37776112]
[1718890817086,0.0925499,65469.0,65468.0,0.37776112]
[1718890817399,0.02552819,65469.0,65468.0,0.37776112]
[1718890817599,0.02552819,65469.0,65468.0,0.42167782]
[1718890817917,0.0925499,65469.0,65468.0,0.42167782]
[1718890818328,0.02552819,65469.0,65468.0,0.42167782]
[1718890818708,0.02552819,65469.0,65468.0,0.43567782]
[1718890819125,0.07025315,65469.0,65468.0,0.42167782]
[1718890819394,0.07025315,65469.0,65468.0,0.40767782]
[1718890819395,0.02552819,65469.0,65468.0,0.40767782]
[1718890819524,0.02552819,65469.0,65468.0,0.42167782]
[1718890820021,0.07025714,65469.0,65468.0,0.42167782]
[1718890820208,0.00863,65469.0,65468.0,0.45867782]
[1718890820392,0.00863,65469.0,65468.0,0.70037782]
[1718890820592,0.00863,65469.0,65468.0,0.68637782]
[1718890820829,0.00863,65469.0,65468.0,1.00107782]
[1718890821040,0.00863,65469.0,65468.0,1.05107782]
[1718890821217,0.00863,65469.0,65468.0,1.15307782]
[1718890821488,0.00863,65469.0,65468.0,1.16707782]
[1718890821666,0.00863,65474.0,65473.0,0.3632]
[1718890821807,0.00863,65474.0,65473.0,0.76759698]
[1718890822861,0.00863,65474.0,65473.0,0.78159698]
[1718890823058,0.00863,65474.0,65473.0,0.67959698]
[1718890823259,0.00863,65474.0,65473.0,0.78159698]
[1718890823459,0.00863,65474.0,65473.0,0.76759698]
[1718890823660,0.00863,65474.0,65473.0,0.67959698]
[1718890824067,0.00863,65474.0,65473.0,0.60659698]
[1718890824289,0.00863,65474.0,65473.0,0.32776112]
[1718890824425,0.02306732,65474.0,65473.0,0.32776112]
[1718890824835,0.06779627,65474.0,65473.0,0.32776112]
[1718890825071,0.06779627,65474.0,65473.0,0.37776112]
[1718890825072,0.00863,65474.0,65473.0,0.37776112]
[1718890825308,0.00863,65474.0,65473.0,0.41495707]
[1718890826048,0.00863,65474.0,65473.0,0.42895707]
[1718890826291,0.00863,65474.0,65473.0,0.44295707]
[1718890826684,0.00863,65474.0,65473.0,0.42895707]
[1718890827072,0.00863,65474.0,65473.0,1.04465707]
[1718890827277,0.00863,65474.0,65473.0,1.13065707]
[1718890827449,0.00863,65474.0,65473.0,1.03065707]
[1718890827655,0.00863,65474.0,65473.0,1.04465707]
[1718890828347,0.00863,65474.0,65473.0,1.14465707]
[1718890828620,0.00863,65474.0,65473.0,1.18265707]
[1718890828875,0.00863,65474.0,65473.0,1.19665707]
[1718890829229,0.00863,65474.0,65473.0,1.18265707]
[1718890829399,0.00863,65474.0,65473.0,1.08065707]
[1718890829610,0.00863,65474.0,65473.0,1.09465707]
[1718890830001,0.00863,65474.0,65473.0,0.47895707]
[1718890830517,0.00863,65474.0,65473.0,0.51595707]
[1718890830745,0.00863,65474.0,65473.0,0.41476112]
[1718890830962,0.00863,65474.0,65473.0,0.39176112]
[1718890831480,0.00863,65474.0,65473.0,0.39128924]
[1718890831801,0.00863,65474.0,65473.0,0.38790721]
[1718890832440,0.00863,65474.0,65473.0,0.37390721]
[1718890832662,0.00863,65474.0,65473.0,0.42331777]
[1718890832910,0.00863,65474.0,65473.0,0.38790721]
[1718890833294,0.00863,65474.0,65473.0,0.40190721]
[1718890833295,0.01794982,65474.0,65473.0,0.40190721]
[1718890833503,0.06270405,65474.0,65473.0,0.40190721]
[1718890833894,0.06270405,65474.0,65473.0,0.38790721]
[1718890834393,0.06270405,65474.0,65473.0,0.45271777]
[1718890834910,0.01794982,65474.0,65473.0,0.45271777]
[1718890835335,0.0627094,65474.0,65473.0,0.45271777]
[1718890835540,0.08509212,65474.0,65473.0,0.43871777]
[1718890835759,0.01794982,65474.0,65473.0,0.43871777]
[1718890836007,0.01794982,65474.0,65473.0,0.45271777]
[1718890836302,0.03447937,65474.0,65473.0,0.40190721]
[1718890836449,0.03447937,65474.0,65473.0,0.38790721]
[1718890836888,0.08512343,65474.0,65473.0,0.40190721]
[1718890837268,0.08512343,65474.0,65473.0,0.41590721]
[1718890837481,0.08512343,65474.0,65473.0,0.47451777]
[1718890837482,0.00863,65474.0,65473.0,0.47451777]
[1718890837680,0.01660999,65479.0,65476.0,0.05]
[1718890838036,0.12053383,65481.0,65479.0,0.2112]
[1718890838037,0.00863,65481.0,65479.0,0.2112]
[1718890838182,0.00863,65481.0,65479.0,0.47101806]
[1718890838386,0.00863,65481.0,65479.0,0.48113486]
[1718890839981,0.00863,65481.0,65479.0,0.49513486]
[1718890840396,0.00863,65481.0,65479.0,0.58313486]
[1718890840809,0.00863,65481.0,65479.0,1.20833486]
[1718890841024,0.00863,65481.0,65479.0,1.23133486]
[1718890842368,0.00863,65481.0,65479.0,1.21733486]
[1718890842821,0.00863,65481.0,65479.0,1.23133486]
[1718890843134,0.00863,65481.0,65479.0,1.21733486]
[1718890843580,0.00863,65481.0,65479.0,1.23133486]
[1718890844563,0.00863,65481.0,65479.0,1.24533486]
[1718890846501,0.00863,65481.0,65479.0,1.23133486]
[1718890846898,0.00863,65481.0,65479.0,1.24533486]
[1718890847274,0.00863,65481.0,65479.0,0.55913486]
[1718890847462,0.00863,65481.0,65479.0,0.50913486]
[1718890847687,0.00863,65481.0,65480.0,0.26874166]
[1718890847910,0.00863,65481.0,65480.0,0.5946147]
[1718890848942,0.00863,65481.0,65480.0,0.6176147]
[1718890849197,0.00863,65481.0,65480.0,0.6316147]
[1718890850026,0.00863,65481.0,65480.0,0.6176147]
[1718890850332,0.00863,65481.0,65480.0,0.6316147]
[1718890851640,0.00863,65481.0,65480.0,0.6456147]
[1718890851841,0.00863,65481.0,65480.0,0.6316147]
[1718890852127,0.00863,65481.0,65480.0,0.6176147]
[1718890852458,0.00863,65481.0,65480.0,0.6316147]
[1718890853092,0.00863,65481.0,65480.0,0.6456147]
[1718890858606,0.00844617,65481.0,65480.0,0.6456147]
[1718890859861,0.00844617,65481.0,65480.0,0.7983327]
[1718890860056,0.00844617,65481.0,65480.0,1.1037687]
[1718890860757,0.00844617,65481.0,65480.0,0.7983327]
[1718890861384,0.00844617,65481.0,65480.0,1.1037687]
[1718890861909,0.00863,65486.0,65485.0,1.585306]
[1718890862108,0.00863,65486.0,65485.0,2.52424726]
[1718890862407,0.00863,65486.0,65485.0,2.53433477]
[1718890862813,0.00862,65498.0,65497.0,0.3632]
[1718890863050,0.00862,65498.0,65497.0,0.51576112]
[1718890863158,0.00862,65498.0,65497.0,0.52579007]
[1718890863366,0.00862,65498.0,65497.0,0.60126625]
[1718890864005,0.00862,65498.0,65497.0,1.17346625]
[1718890864208,0.00862,65498.0,65497.0,1.18746625]
[1718890865154,0.04475573,65515.0,65497.0,1.18746625]
[1718890865155,0.04475573,65515.0,65507.0,0.6]
[1718890865376,0.00862,65521.0,65520.0,0.6112]
[1718890865583,0.00862,65521.0,65520.0,1.254475]
[1718890865787,0.00862,65521.0,65520.0,1.28739178]
[1718890865992,0.00862,65521.0,65520.0,1.59264178]
[1718890866413,0.00862,65521.0,65520.0,1.71944885]
[1718890866673,0.00862,65521.0,65520.0,1.75008885]
[1718890867104,0.00862,65521.0,65520.0,1.76408885]
[1718890867311,0.00862,65521.0,65520.0,2.06933885]
[1718890867523,0.00862,65521.0,65520.0,2.05533885]
[1718890867741,0.00862,65521.0,65520.0,1.32738178]
[1718890867952,0.00862,65521.0,65520.0,2.06469581]
[1718890868171,0.00862,65521.0,65520.0,2.12328178]
[1718890868365,0.00862,65521.0,65520.0,2.25009399]
[1718890869282,0.00862,65521.0,65520.0,2.4918067]
[1718890869461,0.00862,65521.0,65520.0,2.5058067]
[1718890869829,0.00862,65521.0,65520.0,2.33436976]
[1718890870030,0.00862,65521.0,65520.0,2.47780625]
[1718890870516,0.00862,65521.0,65520.0,2.79705625]
[1718890870915,0.00862,65521.0,65520.0,2.78305625]
[1718890871163,0.00862,65540.0,65534.0,1.015792]
[1718890871411,0.00862,65540.0,65534.0,1.99299478]
[1718890871549,0.00862,65540.0,65534.0,2.29817978]
[1718890871764,0.00862,65540.0,65534.0,2.33026328]
[1718890872161,0.2777,65537.0,65534.0,1.17698628]
[1718890872364,0.2777,65537.0,65534.0,1.09158628]
[1718890872727,0.00862,65540.0,65534.0,1.09158628]
[1718890872933,0.00862,65540.0,65534.0,1.09358628]
[1718890873133,0.00862,65540.0,65534.0,1.27898628]
[1718890873345,0.00862,65540.0,65534.0,1.45457828]
[1718890873968,0.00862,65540.0,65534.0,1.30198628]
[1718890874326,0.00862,65540.0,65534.0,1.53086]
[1718890874532,0.00862,65540.0,65534.0,0.5587845]
[1718890874730,0.00862,65540.0,65534.0,0.667868]
[1718890874968,0.00862,65540.0,65534.0,0.669868]
[1718890875174,0.00862,65540.0,65534.0,0.683868]
[1718890875511,0.00862,65540.0,65534.0,0.720868]
[1718890875719,0.00862,65540.0,65534.0,1.220868]
[1718890876199,0.00862,65540.0,65534.0,1.37346]
[1718890876380,0.00862,65540.0,65534.0,1.678645]
[1718890876577,0.00862,65540.0,65534.0,1.947145]
[1718890877041,0.00862,65540.0,65534.0,1.475368]
[1718890877245,0.00862,65540.0,65534.0,1.221968]
[1718890877382,0.00862,65540.0,65534.0,1.235968]
[1718890877580,0.00862,65540.0,65534.0,1.110968]
[1718890877786,0.00862,65540.0,65534.0,1.096968]
[1718890877987,0.00862,65540.0,65534.0,1.196968]
[1718890878198,0.00862,65540.0,65534.0,1.212968]
[1718890878784,0.00862,65540.0,65534.0,1.198968]
[1718890878985,0.00862,65540.0,65534.0,1.184968]
[1718890879613,0.00862,65540.0,65534.0,1.198968]
[1718890880403,0.00862,65540.0,65534.0,1.212968]
[1718890880632,0.00862,65540.0,65534.0,1.38856]
[1718890880854,0.00862,65540.0,65534.0,1.235968]
[1718890881060,0.00862,65540.0,65534.0,1.212968]
[1718890882007,0.00862,65540.0,65534.0,1.38856]
[1718890882222,0.00862,65540.0,65534.0,1.51535625]
[1718890882400,0.00862,65540.0,65534.0,1.82054125]
[1718890882983,0.00862,65540.0,65534.0,1.80654125]
[1718890883222,0.00862,65540.0,65534.0,1.37456]
[1718890883440,0.00862,65540.0,65534.0,2.31112586]
[1718890884221,0.00862,65540.0,65534.0,2.56612586]
[1718890886028,0.00862,65540.0,65534.0,2.58715138]
[1718890886815,0.00862,65540.0,65534.0,1.28278938]
[1718890887030,0.00862,65540.0,65534.0,1.38378938]
[1718890887271,0.00862,65540.0,65534.0,1.53638138]